bitfinex-derivatives/quotes_BTCF0:USTF0_20241019
["timestamp","ask_amount","ask_price","bid_price","bid_amount"]
[1729330366344,0.4598665,68402.0,68401.0,0.32895554]
[1729330367338,0.4598665,68402.0,68401.0,0.33352665]
[1729330367647,0.4598665,68402.0,68401.0,0.2183702]
[1729330367843,0.4598665,68402.0,68401.0,0.33334082]
[1729330368441,0.434093,68402.0,68401.0,0.33334082]
[1729330369146,0.073293,68402.0,68401.0,0.33334082]
[1729330369351,0.434093,68402.0,68401.0,0.33334082]
[1729330370746,0.434093,68402.0,68401.0,0.03627111]
[1729330373760,0.434093,68402.0,68401.0,0.0317]
[1729330373956,0.434093,68402.0,68401.0,0.03627107]
[1729330377151,0.434093,68402.0,68401.0,0.0317]
[1729330377352,0.434093,68402.0,68401.0,0.0362711]
[1729330381773,0.48507603,68402.0,68401.0,0.0362711]
[1729330382069,0.434093,68402.0,68401.0,0.45038404]
[1729330382277,0.434093,68402.0,68401.0,0.33332078]
[1729330382479,0.434093,68402.0,68401.0,0.45032101]
[1729330384071,0.434093,68402.0,68401.0,0.43569831]
[1729330384277,0.434093,68402.0,68401.0,0.33332078]
[1729330385064,0.434093,68402.0,68401.0,0.43569801]
[1729330385263,0.434093,68402.0,68401.0,0.43569787]
[1729330385468,0.434093,68402.0,68401.0,0.33332078]
[1729330387069,0.434093,68402.0,68401.0,0.43569951]
[1729330387265,0.434093,68402.0,68401.0,0.33332078]
[1729330387676,0.434093,68402.0,68401.0,0.33332074]
[1729330388070,0.434093,68402.0,68401.0,0.43569966]
[1729330388271,0.434093,68402.0,68401.0,0.33332074]
[1729330388572,0.434093,68402.0,68401.0,0.43570132]
[1729330388972,0.434093,68402.0,68401.0,0.33332074]
[1729330390673,0.434093,68402.0,68401.0,0.32073739]
[1729330390878,0.434093,68402.0,68401.0,0.21835787]
[1729330391384,0.434093,68402.0,68401.0,0.21378681]
[1729330392073,0.434093,68402.0,68401.0,0.21387615]
[1729330392582,0.434093,68402.0,68401.0,0.43126741]
[1729330393181,0.434093,68402.0,68401.0,0.32888789]
[1729330395577,0.434093,68402.0,68401.0,0.33345895]
[1729330396882,0.54434081,68402.0,68401.0,0.03627106]
[1729330397082,0.073097,68398.0,68397.0,0.073098]
[1729330397381,0.12411293,68398.0,68397.0,0.073098]
[1729330397586,0.12431293,68398.0,68397.0,0.073098]
[1729330400285,0.073297,68398.0,68397.0,0.073098]
[1729330404084,0.073297,68398.0,68397.0,0.37076736]
[1729330407187,0.073297,68398.0,68397.0,0.29766936]
[1729330407890,0.073297,68398.0,68397.0,0.40004066]
[1729330408191,0.073297,68398.0,68397.0,0.40004215]
[1729330409097,0.073297,68398.0,68397.0,0.40461331]
[1729330409587,0.073297,68398.0,68397.0,0.40004215]
[1729330409896,0.073297,68398.0,68397.0,0.28960157]
[1729330410298,0.073297,68398.0,68397.0,0.40504984]
[1729330410695,0.073297,68398.0,68397.0,0.30267705]
[1729330411896,0.073297,68398.0,68397.0,0.30241947]
[1729330412097,0.073297,68398.0,68397.0,0.00457116]
[1729330413292,0.073297,68398.0,68397.0,0.00457112]
[1729330416906,0.0002,68398.0,68397.0,0.00457111]
[1729330417204,0.0002,68398.0,68396.0,0.026788]
[1729330417414,0.073297,68398.0,68397.0,0.00457113]
[1729330418802,0.073297,68398.0,68397.0,0.06306736]
[1729330418994,0.073297,68398.0,68397.0,0.30340118]
[1729330421600,0.073297,68398.0,68397.0,0.30307766]
[1729330424208,0.073297,68398.0,68397.0,0.30307775]
[1729330424610,0.073297,68398.0,68397.0,0.18755106]
[1729330424801,0.073297,68398.0,68397.0,0.28991672]
[1729330425002,0.073297,68398.0,68397.0,0.42020457]
[1729330425202,0.073297,68398.0,68397.0,0.30322083]
[1729330425415,0.073297,68398.0,68397.0,0.42020056]
[1729330425804,0.073297,68398.0,68397.0,0.30322083]
[1729330426207,0.073297,68398.0,68397.0,0.42020056]
[1729330426610,0.073297,68398.0,68397.0,0.42037012]
[1729330427402,0.073297,68398.0,68397.0,0.30339039]
[1729330427809,0.073297,68398.0,68397.0,0.1877427]
[1729330428003,0.073297,68398.0,68397.0,0.1877429]
[1729330429913,0.434097,68398.0,68397.0,0.1877429]
[1729330430614,0.073297,68398.0,68397.0,0.1877429]
[1729330430911,0.434097,68398.0,68397.0,0.1877429]
[1729330431408,0.434097,68398.0,68397.0,0.18773858]
[1729330432709,0.434097,68398.0,68397.0,0.18316716]
[1729330433010,0.434097,68398.0,68397.0,0.18773855]
[1729330434010,0.434097,68398.0,68397.0,0.00457139]
[1729330439224,0.073098,68397.0,68396.0,0.07308445]
[1729330439515,0.073098,68397.0,68396.0,0.08798409]
[1729330439709,0.073298,68397.0,68396.0,0.23416793]
[1729330439904,0.073298,68397.0,68396.0,0.16108409]
[1729330440712,0.073298,68397.0,68396.0,0.16107795]
[1729330441719,0.073298,68397.0,68396.0,0.1610779]
[1729330442020,0.073298,68397.0,68396.0,0.26045495]
[1729330442916,0.073298,68397.0,68396.0,0.36279591]
[1729330443315,0.073298,68397.0,68396.0,0.26045495]
[1729330444007,0.073298,68397.0,68396.0,0.30277711]
[1729330444620,0.073298,68397.0,68396.0,0.3028828]
[1729330448925,0.073298,68397.0,68396.0,0.29831164]
[1729330449225,0.073298,68397.0,68396.0,0.08799439]
[1729330450716,0.073298,68397.0,68396.0,0.16109972]
[1729330450908,0.073298,68397.0,68396.0,0.08799439]
[1729330452620,0.073298,68397.0,68396.0,0.08342316]
[1729330452825,0.073298,68397.0,68396.0,0.08809721]
[1729330454409,0.073298,68397.0,68396.0,0.08813688]
[1729330456322,0.073298,68397.0,68396.0,0.08356556]
[1729330456627,0.073298,68397.0,68396.0,0.08813689]
[1729330457015,0.073298,68397.0,68396.0,0.43483724]
[1729330457220,0.073298,68397.0,68396.0,0.30324038]
[1729330459217,0.073298,68397.0,68396.0,0.29866905]
[1729330459618,0.073298,68397.0,68396.0,0.41564982]
[1729330459822,0.073298,68397.0,68396.0,0.29866905]
[1729330460422,0.073298,68397.0,68396.0,0.30781154]
[1729330460619,0.073298,68397.0,68396.0,0.42479316]
[1729330461528,0.073298,68397.0,68396.0,0.42022194]
[1729330461827,0.073298,68397.0,68396.0,0.42479315]
[1729330462528,0.073298,68397.0,68396.0,0.30781153]
[1729330463120,0.073298,68397.0,68396.0,0.30324032]
[1729330463320,0.073298,68397.0,68396.0,0.29866905]
[1729330463522,0.073298,68397.0,68396.0,0.30324037]
[1729330463921,0.073298,68397.0,68396.0,0.18767363]
[1729330464121,0.073298,68397.0,68396.0,0.08813692]
[1729330464322,0.073298,68397.0,68396.0,0.16125698]
[1729330464530,0.073298,68397.0,68396.0,0.16125751]
[1729330465028,0.073298,68397.0,68396.0,0.08813692]
[1729330466133,0.073298,68397.0,68396.0,0.16125772]
[1729330467032,0.073298,68397.0,68396.0,0.15668636]
[1729330467230,0.073298,68397.0,68396.0,0.16125786]
[1729330467537,0.434098,68397.0,68396.0,0.16125786]
[1729330468328,0.434098,68397.0,68396.0,0.0045715]
[1729330468831,0.434098,68397.0,68396.0,0.08815303]
[1729330470728,0.434098,68397.0,68396.0,0.08815292]
[1729330472129,0.434098,68397.0,68396.0,0.30323753]
[1729330473125,0.434098,68397.0,68396.0,0.40559377]
[1729330473635,0.073298,68397.0,68396.0,0.40559377]
[1729330474139,0.073298,68397.0,68396.0,0.4055303]
[1729330474439,0.073298,68397.0,68396.0,0.2899664]
[1729330474646,0.073298,68397.0,68396.0,0.28539501]
[1729330474941,0.073298,68397.0,68396.0,0.28996634]
[1729330475325,0.073298,68397.0,68396.0,0.29863438]
[1729330475632,0.073298,68397.0,68396.0,0.1876101]
[1729330476734,0.434098,68397.0,68396.0,0.1876101]
[1729330478032,0.434098,68397.0,68396.0,0.18761015]
[1729330481840,0.434098,68397.0,68396.0,0.28722612]
[1729330482041,0.434098,68397.0,68396.0,0.1876919]
[1729330483633,0.434098,68397.0,68396.0,0.40566401]
[1729330484135,0.434098,68397.0,68396.0,0.30317552]
[1729330485243,0.434098,68397.0,68396.0,0.29860414]
[1729330485740,0.434098,68397.0,68396.0,0.30317547]
[1729330487345,0.434098,68397.0,68396.0,0.16118958]
[1729330488049,0.434098,68397.0,68396.0,0.1611889]
[1729330488453,0.434098,68397.0,68396.0,0.08807242]
[1729330488751,0.434098,68397.0,68396.0,0.16118903]
[1729330489651,0.434098,68397.0,68396.0,0.08807242]
[1729330489857,0.434098,68397.0,68396.0,0.16119048]
[1729330490254,0.073298,68397.0,68396.0,0.16119048]
[1729330491645,0.434098,68397.0,68396.0,0.16119048]
[1729330494351,0.434098,68397.0,68396.0,0.30339293]
[1729330494649,0.434098,68397.0,68396.0,0.42037051]
[1729330494846,0.434098,68397.0,68396.0,0.30339293]
[1729330496257,0.434098,68397.0,68396.0,0.30339299]
[1729330496547,0.434098,68397.0,68396.0,0.2988216]
[1729330496752,0.434098,68397.0,68396.0,0.30339291]
[1729330498648,0.434098,68397.0,68396.0,0.4205631]
[1729330499042,0.434098,68397.0,68396.0,0.18784421]
[1729330499757,0.434098,68397.0,68396.0,0.1832729]
[1729330499959,0.434098,68397.0,68396.0,0.18784432]
[1729330501960,0.434098,68397.0,68396.0,0.18771615]
[1729330502255,0.434098,68397.0,68396.0,0.00457142]
[1729330503746,0.073298,68397.0,68396.0,0.00457142]
[1729330503958,0.434098,68397.0,68396.0,0.00457142]
[1729330504159,0.073298,68397.0,68396.0,0.00457142]
[1729330504358,0.434098,68397.0,68396.0,0.00457142]
[1729330505746,0.434098,68397.0,68396.0,0.07769815]
[1729330505951,0.434098,68397.0,68396.0,0.00457142]
[1729330507056,0.434098,68397.0,68396.0,0.07769815]
[1729330508257,0.073298,68397.0,68396.0,0.07769815]
[1729330508559,0.434098,68397.0,68396.0,0.08811572]
[1729330508770,0.073298,68397.0,68396.0,0.00457142]
[1729330509062,0.073298,68397.0,68396.0,0.1564719]
[1729330509361,0.073298,68397.0,68396.0,0.16104294]
[1729330512061,0.073298,68397.0,68396.0,0.1564719]
[1729330512762,0.073298,68397.0,68396.0,0.0731]
[1729330514967,0.0731,68396.0,68395.0,0.0304]
[1729330515162,0.45968439,68396.0,68395.0,0.0304]
[1729330518273,0.45968439,68396.0,68395.0,0.129836]
[1729330518462,0.45968439,68396.0,68395.0,0.21325814]
[1729330518664,0.45968439,68396.0,68395.0,0.0304]
[1729330519264,0.45968439,68396.0,68395.0,0.1456364]
[1729330519473,0.45968439,68396.0,68395.0,0.4304833]
[1729330519864,0.45968439,68396.0,68395.0,0.53280777]
[1729330520070,0.45968439,68396.0,68395.0,0.33430346]
[1729330520666,0.0733,68396.0,68395.0,0.33430346]
[1729330521168,0.0733,68396.0,68395.0,0.61932263]
[1729330521364,0.0733,68396.0,68395.0,0.63228934]
[1729330523164,0.0733,68396.0,68395.0,0.63215009]
[1729330524367,0.0733,68396.0,68395.0,0.33430346]
[1729330528768,0.0733,68396.0,68395.0,0.13272447]
[1729330531681,0.0733,68396.0,68395.0,0.43053254]
[1729330532271,0.0733,68396.0,68395.0,0.40013254]
[1729330533480,0.0733,68396.0,68395.0,0.51706395]
[1729330535780,0.0733,68396.0,68395.0,0.10232447]
[1729330536877,0.0733,68396.0,68395.0,0.51717802]
[1729330537073,0.0733,68396.0,68395.0,0.40021443]
[1729330537584,0.0733,68396.0,68395.0,0.6630476]
[1729330538884,0.0733,68396.0,68395.0,0.56072313]
[1729330539086,0.0733,68396.0,68395.0,0.42913778]
[1729330539386,0.073101,68395.0,68394.0,0.0260543]
[1729330539680,0.073301,68395.0,68392.0,0.073104]
[1729330539884,0.0002,68393.0,68392.0,0.073104]
[1729330543987,0.0002,68393.0,68392.0,0.09999014]
[1729330547080,0.073303,68393.0,68392.0,0.51502199]
[1729330547279,0.073303,68393.0,68392.0,0.39801255]
[1729330549082,0.073303,68393.0,68392.0,0.66096135]
[1729330549484,0.073303,68393.0,68392.0,0.52932583]
[1729330549686,0.073303,68393.0,68392.0,0.6609592]
[1729330549991,0.073303,68393.0,68392.0,0.52932583]
[1729330551190,0.073303,68393.0,68392.0,0.09999014]
[1729330552295,0.073303,68393.0,68392.0,0.52965089]
[1729330552791,0.073303,68393.0,68392.0,0.20969707]
[1729330552980,0.073303,68393.0,68392.0,0.18281093]
[1729330554592,0.073106,68390.0,68389.0,0.04384415]
[1729330554793,0.073306,68390.0,68389.0,0.04384415]
[1729330555585,0.073107,68389.0,68388.0,0.04384415]
[1729330555995,0.073307,68389.0,68388.0,0.04384415]
[1729330556190,0.073307,68389.0,68382.0,0.00219349]
[1729330556191,0.0002,68389.0,68386.0,0.04384415]
[1729330556397,0.073113,68383.0,68382.0,0.00219349]
[1729330556695,0.073313,68383.0,68382.0,0.00219349]
[1729330557592,0.073313,68383.0,68382.0,0.06063848]
[1729330558089,0.073313,68383.0,68382.0,0.00219349]
[1729330558496,0.073313,68383.0,68382.0,0.02809978]
[1729330559188,0.073313,68383.0,68382.0,0.0865376]
[1729330560393,0.073313,68383.0,68382.0,0.1596516]
[1729330561497,0.073313,68383.0,68382.0,0.51628816]
[1729330561697,0.073313,68383.0,68382.0,0.39940127]
[1729330563094,0.073313,68383.0,68382.0,0.10121378]
[1729330563999,0.073313,68383.0,68382.0,0.31598078]
[1729330564205,0.073313,68383.0,68382.0,0.39935678]
[1729330567305,0.073313,68383.0,68382.0,0.32624278]
[1729330567898,0.073313,68383.0,68382.0,0.42848992]
[1729330568098,0.073313,68383.0,68382.0,0.32624278]
[1729330568796,0.073313,68383.0,68382.0,0.32685369]
[1729330571420,0.073313,68383.0,68382.0,0.02809978]
[1729330572416,0.073313,68383.0,68382.0,0.44367375]
[1729330573010,0.073313,68383.0,68382.0,0.32683754]
[1729330573609,0.073313,68383.0,68382.0,0.42906317]
[1729330573802,0.073313,68383.0,68382.0,0.51243948]
[1729330574003,0.073313,68383.0,68382.0,0.19513801]
[1729330576507,0.073313,68383.0,68382.0,0.11164211]
[1729330577113,0.073313,68383.0,68382.0,0.08573582]
[1729330579516,0.073313,68383.0,68382.0,0.00219349]
[1729330584514,0.073313,68383.0,68382.0,0.18583185]
[1729330585109,0.073313,68383.0,68382.0,0.00219349]
[1729330586118,0.073313,68383.0,68382.0,0.18583968]
[1729330590915,0.0002,68383.0,68380.0,0.02674444]
[1729330591115,0.073119,68378.0,68377.0,0.07312]
[1729330591421,0.073319,68378.0,68377.0,0.07312]
[1729330592719,0.073319,68378.0,68377.0,0.0993477]
[1729330594612,0.073319,68378.0,68377.0,0.0262277]
[1729330594814,0.073125,68372.0,68371.0,0.04381433]
[1729330595024,0.0002,68372.0,68368.0,0.07661433]
[1729330595223,0.073328,68369.0,68368.0,0.0328]
[1729330596119,0.073328,68369.0,68368.0,0.13183353]
[1729330596325,0.0002,68369.0,68368.0,0.13183353]
[1729330597530,0.0002,68369.0,68368.0,0.17564786]
[1729330599034,0.0002,68369.0,68368.0,0.13183353]
[1729330599526,0.0002,68369.0,68368.0,0.43147613]
[1729330600122,0.0002,68369.0,68368.0,1.03147613]
[1729330601422,0.0002,68369.0,68368.0,0.43147613]
[1729330601624,0.0002,68369.0,68368.0,0.79227613]
[1729330602622,0.0002,68369.0,68368.0,0.92440837]
[1729330603535,0.0002,68369.0,68368.0,0.93602492]
[1729330604521,0.0002,68369.0,68368.0,0.92230837]
[1729330605030,0.0002,68369.0,68368.0,0.79017613]
[1729330605424,0.0002,68369.0,68368.0,0.80389243]
[1729330605630,0.0002,68378.0,68368.0,0.69032976]
[1729330605930,0.0002,68378.0,68377.0,0.43392]
[1729330606532,0.073319,68378.0,68377.0,0.43392]
[1729330609336,0.073319,68378.0,68377.0,0.73359605]
[1729330614327,0.073319,68378.0,68377.0,0.83590761]
[1729330614724,0.073319,68378.0,68377.0,0.45995249]
[1729330618135,0.073319,68378.0,68377.0,0.09915249]
[1729330618334,0.073319,68378.0,68377.0,0.45995249]
[1729330621741,0.073319,68378.0,68377.0,0.64349511]
[1729330623240,0.073319,68378.0,68377.0,0.28269511]
[1729330625438,0.073319,68378.0,68377.0,0.38500667]
[1729330626437,0.073319,68378.0,68377.0,0.50092736]
[1729330627143,0.073319,68378.0,68377.0,0.28269511]
[1729330629638,0.073319,68378.0,68377.0,0.14302494]
[1729330633957,0.073319,68378.0,68377.0,0.09915249]
[1729330637656,0.073319,68378.0,68377.0,0.28273982]
[1729330637850,0.073319,68378.0,68377.0,0.39867586]
[1729330638250,0.073319,68378.0,68377.0,0.51566732]
[1729330638451,0.073319,68378.0,68377.0,0.39867586]
[1729330644261,0.073319,68378.0,68377.0,0.51567668]
[1729330644463,0.073319,68378.0,68377.0,0.39867586]
[1729330644659,0.073319,68378.0,68377.0,0.09915249]
[1729330650163,0.0002,68378.0,68377.0,0.09915249]
[1729330651766,0.0002,68378.0,68377.0,0.39638842]
[1729330652669,0.0002,68378.0,68377.0,0.51338924]
[1729330652865,0.0002,68378.0,68377.0,0.39638842]
[1729330653463,0.36299442,68386.0,68377.0,0.39638842]
[1729330653464,0.00219442,68386.0,68385.0,0.073111]
[1729330653669,0.073303,68393.0,68391.0,0.073104]
[1729330653869,0.073303,68393.0,68382.0,0.3608]
[1729330653870,0.073303,68393.0,68392.0,0.25440389]
[1729330655479,0.0002,68393.0,68392.0,0.61471623]
[1729330655777,0.0002,68393.0,68392.0,0.83053615]
[1729330655965,0.0002,68393.0,68392.0,0.72814208]
[1729330656164,0.0633,68403.0,68392.0,0.65503808]
[1729330656378,0.073093,68403.0,68402.0,0.073093]
[1729330656576,0.073093,68403.0,68402.0,0.25390523]
[1729330657977,0.073093,68403.0,68402.0,0.15580425]
[1729330660271,0.00219358,68406.0,68402.0,0.08271125]
[1729330660478,0.00219358,68406.0,68403.0,0.08271125]
[1729330660679,0.00219358,68406.0,68404.0,0.08271125]
[1729330660973,0.00219358,68406.0,68405.0,0.08271125]
[1729330661470,0.00219358,68406.0,68405.0,0.15580125]
[1729330661672,0.07528258,68406.0,68405.0,0.15580125]
[1729330664973,0.07528258,68406.0,68405.0,0.22858718]
[1729330665166,0.07528258,68406.0,68405.0,0.22858788]
[1729330666269,0.07528258,68406.0,68405.0,0.14587663]
[1729330667079,0.07528258,68406.0,68405.0,0.07309]
[1729330669984,0.07528258,68406.0,68405.0,0.14585807]
[1729330670180,0.07528258,68406.0,68405.0,0.07309]
[1729330674282,0.07528258,68406.0,68400.0,0.02635878]
[1729330674283,0.05469578,68406.0,68400.0,0.02635878]
[1729330674485,0.0002,68401.0,68400.0,0.09945378]
[1729330679301,0.0002,68401.0,68400.0,0.27863352]
[1729330680102,0.0002,68401.0,68400.0,0.09945378]
[1729330680292,0.0002,68401.0,68400.0,0.27860772]
[1729330682701,0.0002,68401.0,68400.0,0.09945378]
[1729330689604,0.0002,68401.0,68400.0,0.39281667]
[1729330691608,0.0002,68401.0,68400.0,0.50924484]
[1729330692707,0.0002,68401.0,68400.0,0.39281667]
[1729330694003,0.0002,68401.0,68400.0,0.39265059]
[1729330696404,0.0002,68401.0,68400.0,0.75345059]
[1729330697114,0.0002,68401.0,68400.0,0.39265059]
[1729330697413,0.0002,68401.0,68400.0,0.75345059]
[1729330697706,0.0002,68401.0,68400.0,0.46025378]
[1729330702416,0.0002,68401.0,68400.0,0.09945378]
[1729330704609,0.0002,68401.0,68400.0,0.39293531]
[1729330707016,0.0002,68401.0,68400.0,0.75373531]
[1729330708812,0.0002,68401.0,68400.0,0.39293531]
[1729330709013,0.0002,68401.0,68400.0,0.75373531]
[1729330709418,0.0002,68401.0,68400.0,0.39293531]
[1729330709629,0.0002,68401.0,68400.0,0.75373531]
[1729330709824,0.0002,68401.0,68400.0,0.8707211]
[1729330710021,0.00219358,68406.0,68400.0,0.8707211]
[1729330710022,0.00219358,68406.0,68405.0,0.07309]
[1729330710213,0.00219358,68406.0,68405.0,0.60525784]
[1729330710521,0.00219358,68406.0,68405.0,0.37377185]
[1729330711423,0.82015953,68419.0,68406.0,0.073089]
[1729330711424,0.073077,68417.0,68406.0,0.073089]
[1729330711716,0.073078,68416.0,68415.0,0.073078]
[1729330711914,0.073078,68416.0,68415.0,0.35529545]
[1729330712109,0.073078,68416.0,68415.0,0.25298946]
[1729330712519,0.12602311,68416.0,68415.0,0.073078]
[1729330712918,0.12602311,68416.0,68410.0,0.361]
[1729330713225,0.05289352,68415.0,68414.0,0.07308]
[1729330714325,0.073078,68416.0,68414.0,0.07308]
[1729330714724,0.05240686,68415.0,68414.0,0.07308]
[1729330715129,0.073078,68416.0,68414.0,0.07308]
[1729330715829,0.3608,68416.0,68410.0,0.0004]
[1729330716021,0.073283,68411.0,68410.0,0.0004]
[1729330719635,0.073283,68411.0,68410.0,0.08249762]
[1729330720628,0.073283,68411.0,68410.0,0.18035181]
[1729330721232,0.0002,68411.0,68410.0,0.25343681]
[1729330724029,0.0002,68411.0,68410.0,0.61423681]
[1729330724222,0.0002,68411.0,68410.0,0.82977732]
[1729330725430,0.0002,68411.0,68410.0,0.72747133]
[1729330725630,0.0002,68411.0,68410.0,0.82962597]
[1729330725830,0.0002,68411.0,68410.0,0.72747133]
[1729330727521,0.0002,68411.0,68410.0,0.72708132]
[1729330727928,0.0002,68411.0,68410.0,0.36628132]
[1729330732534,0.0002,68411.0,68410.0,0.36626429]
[1729330733132,0.0002,68411.0,68410.0,0.48319171]
[1729330733838,0.0002,68411.0,68410.0,0.36626429]
[1729330734235,0.0002,68411.0,68410.0,0.48319171]
[1729330734441,0.0002,68411.0,68410.0,0.36626429]
[1729330734643,0.0002,68411.0,68410.0,0.15536103]
[1729330737434,0.0002,68411.0,68410.0,0.15540711]
[1729330740238,0.0002,68411.0,68410.0,0.24298799]
[1729330740941,0.0002,68411.0,68410.0,0.16106588]
[1729330741135,0.0002,68411.0,68410.0,0.24302476]
[1729330742542,0.0002,68411.0,68410.0,0.3665803]
[1729330742846,0.0002,68411.0,68410.0,0.48350772]
[1729330743341,0.0002,68411.0,68410.0,0.3665803]
[1729330743742,0.0002,68411.0,68410.0,0.48350772]
[1729330744242,0.0002,68411.0,68410.0,0.3665803]
[1729330744545,0.0002,68411.0,68410.0,0.48350772]
[1729330745838,0.0002,68411.0,68410.0,0.48352751]
[1729330746241,0.0002,68411.0,68410.0,0.36660009]
[1729330750653,0.0002,68411.0,68410.0,0.366626]
[1729330750835,0.0002,68411.0,68410.0,0.49581263]
[1729330752947,0.0002,68411.0,68410.0,0.62738794]
[1729330755543,0.0002,68411.0,68410.0,0.62747017]
[1729330757653,0.0002,68411.0,68410.0,0.25321084]
[1729330760044,0.0002,68411.0,68410.0,0.15547815]
[1729330761555,0.0002,68411.0,68410.0,0.25326605]
[1729330764650,0.0002,68411.0,68410.0,0.49603487]
[1729330765451,0.0002,68411.0,68410.0,0.496042]
[1729330766759,0.0002,68411.0,68410.0,0.25327345]
[1729330770955,0.073283,68411.0,68410.0,0.18018845]
[1729330772764,0.073283,68411.0,68410.0,0.08242171]
[1729330778971,0.073283,68411.0,68410.0,0.18023787]
[1729330779875,0.073283,68411.0,68410.0,0.42312714]
[1729330785180,0.073283,68411.0,68410.0,0.42314788]
[1729330787073,0.073283,68411.0,68410.0,0.2938327]
[1729330787977,0.073283,68411.0,68410.0,0.08245876]
[1729330789573,0.073283,68411.0,68410.0,0.18026607]
[1729330789884,0.073283,68411.0,68410.0,0.18026751]
[1729330790470,0.073283,68411.0,68410.0,0.17019619]
[1729330790776,0.073283,68411.0,68410.0,0.08245778]
[1729330791874,0.073283,68411.0,68410.0,0.15555615]
[1729330792265,0.073283,68411.0,68410.0,0.07349837]
[1729330792778,0.103483,68411.0,68410.0,0.07349837]
[1729330793374,0.103483,68411.0,68410.0,0.0004]
[1729330793571,0.464283,68411.0,68410.0,0.0004]
[1729330794875,0.464283,68411.0,68410.0,0.29471282]
[1729330795180,0.464283,68411.0,68410.0,0.29471263]
[1729330795971,0.464283,68411.0,68410.0,0.39698831]
[1729330796572,0.103483,68411.0,68410.0,0.39698831]
[1729330797283,0.103483,68411.0,68410.0,0.28308472]
[1729330797681,0.103483,68411.0,68410.0,0.3969678]
[1729330799586,0.103483,68411.0,68410.0,0.28308472]
[1729330799979,0.103483,68411.0,68410.0,0.2830793]
[1729330800289,0.103483,68411.0,68410.0,0.39697946]
[1729330800688,0.103483,68411.0,68410.0,0.29470378]
[1729330802890,0.103483,68411.0,68410.0,0.0004]
[1729330806386,0.103483,68411.0,68410.0,0.10551724]
[1729330806589,0.103483,68411.0,68410.0,0.12767203]
[1729330806900,0.103483,68411.0,68410.0,0.10551724]
[1729330807591,0.703483,68411.0,68410.0,0.02285157]
[1729330808093,0.736083,68411.0,68410.0,0.08127756]
[1729330808494,0.736083,68411.0,68410.0,0.02285157]
[1729330808998,0.736083,68411.0,68410.0,0.02285273]
[1729330809388,0.073085,68410.0,68409.0,0.05862599]
[1729330809589,0.073285,68410.0,68409.0,0.08147878]
[1729330809888,1.034085,68410.0,68409.0,0.20376223]
[1729330810294,0.434085,68410.0,68409.0,0.20376223]
[1729330811396,0.434085,68410.0,68409.0,0.18090944]
[1729330812388,0.434085,68410.0,68409.0,0.18102446]
[1729330812590,0.434085,68410.0,68409.0,0.08264188]
[1729330815392,0.434085,68410.0,68409.0,0.18104184]
[1729330815591,0.434085,68410.0,68409.0,0.08264188]
[1729330816702,0.434085,68410.0,68409.0,0.18104174]
[1729330817400,0.46054327,68410.0,68409.0,0.18104174]
[1729330817892,0.46054327,68410.0,68409.0,0.18116172]
[1729330822098,1.06054327,68410.0,68409.0,0.18116172]
[1729330823310,0.69974327,68410.0,68409.0,0.18116172]
[1729330823512,1.06054327,68410.0,68409.0,0.18116172]
[1729330824319,0.46054327,68410.0,68409.0,0.18116172]
[1729330824710,1.06054327,68410.0,68409.0,0.08275697]
[1729330824912,1.11204748,68410.0,68409.0,0.0002]
[1729330825212,1.11204748,68410.0,68409.0,6.257e-05]
[1729330826020,1.17181163,68410.0,68409.0,6.257e-05]
[1729330826406,0.51204748,68410.0,68409.0,6.257e-05]
[1729330826608,0.57180804,68410.0,68409.0,6.257e-05]
[1729330827022,1.61032804,68410.0,68409.0,6.257e-05]
[1729330827219,1.55056748,68410.0,68409.0,6.257e-05]
[1729330830322,1.610315,68410.0,68409.0,6.257e-05]
[1729330831312,1.249515,68410.0,68409.0,6.257e-05]
[1729330832027,1.610315,68410.0,68409.0,6.257e-05]
[1729330833225,1.49906327,68410.0,68409.0,0.0827169]
[1729330833425,1.13826327,68410.0,68409.0,0.0827169]
[1729330833620,1.49906327,68410.0,68409.0,0.0827169]
[1729330834722,1.13826327,68410.0,68409.0,0.0827169]
[1729330834926,1.49906327,68410.0,68409.0,0.0827169]
[1729330835222,1.49906327,68410.0,68409.0,0.08265433]
[1729330835420,1.13826327,68410.0,68409.0,0.08265433]
[1729330835619,1.49906327,68410.0,68409.0,0.08265433]
[1729330836823,1.13826327,68410.0,68409.0,0.08265433]
[1729330837121,1.49906327,68410.0,68409.0,0.08265433]
[1729330837326,1.49906327,68410.0,68408.0,0.08767791]
[1729330837327,0.073086,68409.0,68408.0,0.08767791]
[1729330837528,0.511806,68409.0,68408.0,0.08270478]
[1729330837827,1.111806,68409.0,68408.0,0.17040015]
[1729330838421,1.111806,68409.0,68408.0,0.08270478]
[1729330838626,1.111806,68409.0,68408.0,0.17040015]
[1729330840129,1.034086,68409.0,68408.0,0.17040015]
[1729330841826,0.434086,68409.0,68408.0,0.17040015]
[1729330842228,0.434086,68409.0,68408.0,0.17061591]
[1729330842626,0.434086,68409.0,68408.0,0.08292054]
[1729330843130,0.073286,68409.0,68408.0,0.08292054]
[1729330843328,0.434086,68409.0,68408.0,0.08292054]
[1729330845719,0.434086,68409.0,68408.0,0.18164575]
[1729330848126,0.434086,68409.0,68401.0,0.033]
[1729330848127,0.073093,68402.0,68401.0,0.033]
[1729330848327,0.12462403,68402.0,68401.0,0.033]
[1729330854439,0.12465119,68402.0,68401.0,0.033]
[1729330855148,0.073293,68402.0,68401.0,0.32923963]
[1729330856930,0.073293,68402.0,68401.0,0.32938688]
[1729330857440,0.073293,68402.0,68401.0,0.43175172]
[1729330857829,0.073293,68402.0,68401.0,0.32938688]
[1729330858341,0.073293,68402.0,68401.0,0.43175134]
[1729330860239,0.073293,68402.0,68401.0,0.43175135]
[1729330860437,0.073293,68402.0,68401.0,0.32938688]
[1729330862030,0.073293,68402.0,68401.0,0.033]
[1729330865937,0.12459593,68402.0,68401.0,0.033]
[1729330866340,0.48539593,68402.0,68401.0,0.033]
[1729330867945,0.12459593,68402.0,68401.0,0.033]
[1729330868246,0.48539593,68402.0,68401.0,0.033]
[1729330869952,0.12459593,68402.0,68401.0,0.033]
[1729330870149,0.434093,68402.0,68401.0,0.32988391]
[1729330871247,0.434093,68402.0,68401.0,0.31734249]
[1729330871550,0.434093,68402.0,68401.0,0.43223728]
[1729330871945,0.434093,68402.0,68401.0,0.2149852]
[1729330872445,0.434093,68402.0,68401.0,0.31734249]